Workbook

Sheet KOKONAISTILANNE
D5: Kausikilpailut 2026 Impivaara, Turku
AY6: Nimi | AZ6: pvm
B8: NETTOTULOKSET JA PISTEET | BA8: PIIKKIKISA
B9: Sij. | C9: Nimi | D9: Seura | E9: HCP alku | F9: HCP nyt | G9: 2026-05-05 | I9: 2026-05-12 | K9: 2026-05-19 | M9: 2026-05-26 | O9: 2026-06-02 | Q9: 2026-06-09 | S9: 2026-06-16 | U9: 2026-06-23 | W9: 2026-06-30 | Y9: 2026-07-07 | AA9: 2026-07-14 | AC9: 2026-07-21 | AE9: 2026-07-28 | AG9: 2026-08-04 | AI9: 2026-08-11 | AK9: 2026-08-18 | AM9: 2026-08-25 | AO9: 2026-09-01 | AQ9: 2026-09-08 | AS9: 15.9. | AU9: kilp | AV9: sum | BA9: Pekka Mäntylä | BC9: 5.5. | BD9: 10 | BE9: X
B10: 1 | C10: Oliver Mäntylä | D10: TuRGS | E10: 4 | F10: 0 | G10: 72 | H10: =100-G10 -> 28 | I10: 58 | J10: =100-I10 -> 42 | K10: 67 | L10: =100-K10 -> 33 | M10: 67 | N10: =100-M10 -> 33 | O10: 67 | P10: =100-O10 -> 33 | AU10: =COUNT(G10:AT10)/2 -> 5 | AV10: =Aputaulukko!AJ2 -> 169 | BA10: Pekka Mäntylä | BC10: 12.5. | BD10: 12 | BE10: X
B11: 2 | C11: Pekka Mäntylä | D11: TuRGS | E11: 4 | F11: 3 | G11: 91 | H11: =100-G11 -> 9 | I11: 75 | J11: =100-I11 -> 25 | K11: 70 | L11: =100-K11 -> 30 | M11: 72 | N11: =100-M11 -> 28 | O11: 71 | P11: =100-O11 -> 29 | AU11: =COUNT(G11:AT11)/2 -> 5 | AV11: =Aputaulukko!AJ3 -> 121 | BA11: Petri Tanninen | BC11: 19.5. | BD11: 5 | BE11: Piikki
B12: 3 | C12: Petri Tanninen | D12: TuRGS | E12: 12 | F12: 11 | G12: 84 | H12: =100-G12 -> 16 | I12: 71 | J12: =100-I12 -> 29 | K12: 73 | L12: =100-K12 -> 27 | M12: 81 | N12: =100-M12 -> 19 | O12: 88 | P12: =100-O12 -> 12 | AU12: =COUNT(G12:AT12)/2 -> 5 | AV12: =Aputaulukko!AJ4 -> 103 | BA12: Patrik Eriksson | BC12: 26.5. | BD12: 2 | BE12: X
B13: 4 | C13: Petri Lönngren | D13: TuRGS | E13: 4 | F13: 2 | K13: 74 | L13: =100-K13 -> 26 | M13: 69 | N13: =100-M13 -> 31 | O13: 63 | P13: =100-O13 -> 37 | AU13: 3 | AV13: =Aputaulukko!AJ5 -> 94 | BA13: Juuso Tasku | BC13: 2.6. | BD13: 11 | BE13: X
B14: 5 | C14: Kari Linnanketo | D14: TuRGS | E14: 8 | F14: 7 | G14: 73 | H14: =100-G14 -> 27 | K14: 91 | L14: =100-K14 -> 9 | M14: 82 | N14: =100-M14 -> 18 | O14: 70 | P14: =100-O14 -> 30 | AU14: 4 | AV14: =Aputaulukko!AJ6 -> 84 | BC14: 9.6.
B15: 6 | C15: Juhani Samuli | D15: TuRGS | E15: 12 | F15: 12 | G15: 102 | H15: 0 | K15: 81 | L15: =100-K15 -> 19 | M15: 72 | N15: 28 | O15: 77 | P15: 23 | AU15: 4 | AV15: =Aputaulukko!AJ7 -> 70 | BC15: 16.6.
B16: 7 | C16: Juuso Tasku | D16: Manse | E16: 4 | F16: 4 | M16: 73 | N16: =100-M16 -> 27 | O16: 70 | P16: =100-O16 -> 30 | AU16: 2 | AV16: =Aputaulukko!AJ8 -> 57 | BC16: 23.6.
B17: 8 | C17: Patrik Eriksson | D17: TuRGS | E17: 8 | F17: 6 | M17: 66 | N17: =100-M17 -> 34 | O17: 78 | P17: =100-O17 -> 22 | AU17: 2 | AV17: =Aputaulukko!AJ9 -> 56 | BC17: 30.6.
B18: 9 | C18: Miko Tuominen | D18: Manse | E18: 4 | F18: 4 | M18: 78 | N18: =100-M18 -> 22 | O18: 70 | P18: =100-O18 -> 30 | AU18: =COUNT(G18:AT18)/2 -> 2 | AV18: =Aputaulukko!AJ10 -> 52 | BC18: 7.7.
B19: 10 | C19: Tiina Tång | D19: TuRGS | E19: 12 | F19: 12 | G19: 86 | H19: =100-G19 -> 14 | K19: 103 | L19: 0 | M19: 94 | N19: =100-M19 -> 6 | O19: 81 | P19: =100-O19 -> 19 | AU19: 4 | AV19: =Aputaulukko!AJ11 -> 39 | BC19: 14.7.
B20: 11 | C20: Jari Haapanen | D20: MG-Aces | E20: 12 | F20: 12 | O20: 72 | P20: =100-O20 -> 28 | AU20: 1 | AV20: =Aputaulukko!AJ12 -> 28 | BC20: 21.7.
B21: 12 | C21: Aleksi Tång | D21: TuRGS | E21: 12 | F21: 12 | M21: 101 | N21: 0 | O21: 96 | P21: =100-O21 -> 4 | AU21: =COUNT(G21:AT21)/2 -> 2 | AV21: =Aputaulukko!AJ13 -> 4 | BC21: 28.7.
B22: 13 | C22: Marjo Tiainen | D22: TuRGS | E22: 12 | F22: 17 | G22: 114 | H22: 0 | I22: 105 | J22: 0 | K22: 105 | L22: 0 | M22: 107 | N22: 0 | O22: 103 | P22: 0 | AU22: 5 | AV22: =Aputaulukko!AJ14 -> 0 | BC22: 4.8.
B23: 14 | C23: Marianne Martiala | D23: TuRGS | E23: 12 | F23: 12 | I23: 108 | J23: 0 | M23: 102 | N23: 0 | O23: 101 | P23: 0 | AU23: 3 | AV23: =Aputaulukko!AJ15 -> 0 | BC23: 11.8.
AV24: 12.parasta kisaa huomioidaan! | BC24: 18.8.
BC25: 25.8.
B26: Sij. | C26: Nimi | D26: Seura | E26: Luokka | G26: 2026-05-05 | I26: 2026-05-12 | K26: 2026-05-19 | M26: 2026-05-26 | O26: 2026-06-02 | Q26: 2026-06-09 | S26: 2026-06-16 | U26: 2026-06-23 | W26: 2026-06-30 | Y26: 2026-07-07 | AA26: 2026-07-14 | AC26: 2026-07-21 | AE26: 2026-07-28 | AG26: 2026-08-04 | AI26: 2026-08-11 | AK26: 2026-08-18 | AM26: 2026-08-25 | AO26: 2026-09-01 | AQ26: 2026-09-08 | AS26: 15.9. | AU26: krs | AV26: ka. | AW26: min | AX26: max | AY26: haj | BC26: 1.9.
B27: 1 | C27: Oliver Mäntylä | D27: TuRGS | E27: H1 | G27: 39 | H27: 37 | I27: 31 | J27: 29 | K27: 32 | L27: 35 | M27: 34 | N27: 33 | O27: 35 | P27: 32 | AU27: =COUNT(G27:AT27) -> 10 | AV27: =AVERAGE(G27:AT27) -> 33.7 | AW27: =MIN(G27:AT27) -> 29 | AX27: =MAX(G27:AT27) -> 39 | AY27: =AX27-AW27 -> 10 | BC27: 8.9.
B28: =B27+1 -> 2 | C28: Petri Lönngren | D28: TuRGS | E28: H1 | K28: 40 | L28: 38 | M28: 40 | N28: 33 | O28: 33 | P28: 34 | AU28: =COUNT(G28:AT28) -> 6 | AV28: =AVERAGE(G28:AT28) -> 36.33333333 | AW28: =MIN(G28:AT28) -> 33 | AX28: =MAX(G28:AT28) -> 40 | AY28: =AX28-AW28 -> 7 | BC28: 15.9
B29: =B28+1 -> 3 | C29: Juuso Tasku | D29: Manse | E29: H1 | M29: 41 | N29: 36 | O29: 37 | P29: 37 | AU29: =COUNT(G29:AT29) -> 4 | AV29: =AVERAGE(G29:AT29) -> 37.75 | AW29: =MIN(G29:AT29) -> 36 | AX29: =MAX(G29:AT29) -> 41 | AY29: =AX29-AW29 -> 5
B30: 4 | C30: Miko Tuominen | D30: Manse | E30: H1 | M30: 39 | N30: 43 | O30: 40 | P30: 34 | AU30: =COUNT(G30:AT30) -> 4 | AV30: =AVERAGE(G30:AT30) -> 39 | AW30: =MIN(G30:AT30) -> 34 | AX30: =MAX(G30:AT30) -> 43 | AY30: =AX30-AW30 -> 9
B31: 5 | C31: Patrik Eriksson | D31: TuRGS | E31: H2 | M31: 41 | N31: 33 | O31: 38 | P31: 46 | AU31: =COUNT(G31:AT31) -> 4 | AV31: =AVERAGE(G31:AT31) -> 39.5 | AW31: =MIN(G31:AT31) -> 33 | AX31: =MAX(G31:AT31) -> 46 | AY31: =AX31-AW31 -> 13
B32: 6 | C32: Pekka Mäntylä | D32: TuRGS | E32: H1 | G32: 55 | H32: 40 | I32: 35 | J32: 44 | K32: 32 | L32: 42 | M32: 37 | N32: 38 | O32: 36 | P32: 38 | AU32: =COUNT(G32:AT32) -> 10 | AV32: =AVERAGE(G32:AT32) -> 39.7 | AW32: =MIN(G32:AT32) -> 32 | AX32: =MAX(G32:AT32) -> 55 | AY32: =AX32-AW32 -> 23
B33: 7 | C33: Jari Haapanen | D33: MG-Aces | E33: H3 | O33: 40 | P33: 44 | AU33: =COUNT(G33:AT33) -> 2 | AV33: =AVERAGE(G33:AT33) -> 42 | AW33: =MIN(G33:AT33) -> 40 | AX33: =MAX(G33:AT33) -> 44 | AY33: =AX33-AW33 -> 4
B34: 8 | C34: Kari Linnanketo | D34: TuRGS | E34: H2 | G34: 41 | H34: 40 | K34: 55 | L34: 43 | M34: 43 | N34: 46 | O34: 43 | P34: 34 | AU34: =COUNT(G34:AT34) -> 8 | AV34: =AVERAGE(G34:AT34) -> 43.125 | AW34: =MIN(G34:AT34) -> 34 | AX34: =MAX(G34:AT34) -> 55 | AY34: =AX34-AW34 -> 21
B35: 9 | C35: Petri Tanninen | D35: TuRGS | E35: H3 | G35: 52 | H35: 44 | I35: 44 | J35: 39 | K35: 46 | L35: 38 | M35: 41 | N35: 51 | O35: 48 | P35: 51 | AU35: =COUNT(G35:AT35) -> 10 | AV35: =AVERAGE(G35:AT35) -> 45.4 | AW35: =MIN(G35:AT35) -> 38 | AX35: =MAX(G35:AT35) -> 52 | AY35: =AX35-AW35 -> 14
B36: 10 | C36: Juhani Samuli | D36: TuRGS | E36: H3 | G36: 63 | H36: 51 | K36: 50 | L36: 43 | M36: 45 | N36: 39 | O36: 44 | P36: 45 | AU36: =COUNT(G36:AT36) -> 8 | AV36: =AVERAGE(G36:AT36) -> 47.5 | AW36: =MIN(G36:AT36) -> 39 | AX36: =MAX(G36:AT36) -> 63 | AY36: =AX36-AW36 -> 24
B37: 11 | C37: Tiina Tång | D37: TuRGS | E37: H3 | G37: 46 | H37: 52 | K37: 57 | L37: 58 | M37: 49 | N37: 57 | O37: 45 | P37: 48 | AU37: =COUNT(G37:AT37) -> 8 | AV37: =AVERAGE(G37:AT37) -> 51.5 | AW37: =MIN(G37:AT37) -> 45 | AX37: =MAX(G37:AT37) -> 58 | AY37: =AX37-AW37 -> 13
B38: 12 | C38: Aleksi Tång | D38: TuRGS | E38: H3 | M38: 56 | N38: 57 | O38: 60 | P38: 48 | AU38: =COUNT(G38:AT38) -> 4 | AV38: =AVERAGE(G38:AT38) -> 55.25 | AW38: =MIN(G38:AT38) -> 48 | AX38: =MAX(G38:AT38) -> 60 | AY38: =AX38-AW38 -> 12
B39: 13 | C39: Marianne Martiala | D39: TuRGS | E39: H3 | I39: 55 | J39: 62 | M39: 54 | N39: 60 | O39: 55 | P39: 58 | AU39: =COUNT(G39:AT39) -> 6 | AV39: =AVERAGE(G39:AT39) -> 57.33333333 | AW39: =MIN(G39:AT39) -> 54 | AX39: =MAX(G39:AT39) -> 62 | AY39: =AX39-AW39 -> 8
B40: =B39+1 -> 14 | C40: Marjo Tiainen | D40: TuRGS | E40: H3 | G40: 59 | H40: 67 | I40: 64 | J40: 57 | K40: 64 | L40: 55 | M40: 63 | N40: 59 | O40: 65 | P40: 54 | AU40: =COUNT(G40:AT40) -> 10 | AV40: =AVERAGE(G40:AT40) -> 60.7 | AW40: =MIN(G40:AT40) -> 54 | AX40: =MAX(G40:AT40) -> 67 | AY40: =AX40-AW40 -> 13

Sheet Aputaulukko
C1: Check | D1: =KOKONAISTILANNE!G9 -> 2026-05-05 | E1: =KOKONAISTILANNE!I9 -> 2026-05-12 | F1: =KOKONAISTILANNE!K9 -> 2026-05-19 | G1: =KOKONAISTILANNE!M9 -> 2026-05-26 | H1: =KOKONAISTILANNE!O9 -> 2026-06-02 | I1: =KOKONAISTILANNE!Q9 -> 2026-06-09 | J1: =KOKONAISTILANNE!S9 -> 2026-06-16 | K1: =KOKONAISTILANNE!U9 -> 2026-06-23 | L1: =KOKONAISTILANNE!W9 -> 2026-06-30 | M1: =KOKONAISTILANNE!Y9 -> 2026-07-07 | N1: =KOKONAISTILANNE!AA9 -> 2026-07-14 | O1: =KOKONAISTILANNE!AC9 -> 2026-07-21 | P1: =KOKONAISTILANNE!AE9 -> 2026-07-28 | Q1: =KOKONAISTILANNE!AG9 -> 2026-08-04 | R1: =KOKONAISTILANNE!AI9 -> 2026-08-11 | S1: =KOKONAISTILANNE!AK9 -> 2026-08-18 | T1: =KOKONAISTILANNE!AM9 -> 2026-08-25 | U1: =KOKONAISTILANNE!AO9 -> 2026-09-01 | V1: =KOKONAISTILANNE!AQ9 -> 2026-09-08 | W1: =KOKONAISTILANNE!AS9 -> 15.9. | X1: 1 | Y1: 2 | Z1: 3 | AA1: 4 | AB1: 5 | AC1: 6 | AD1: 7 | AE1: 8 | AF1: 9 | AG1: 10 | AH1: 11 | AI1: 12 | AJ1: Pisteet
A2: 1 | B2: Oliver Mäntylä | C2: =KOKONAISTILANNE!C10 -> Oliver Mäntylä | D2: =KOKONAISTILANNE!H10 -> 28 | E2: =KOKONAISTILANNE!J10 -> 42 | F2: =KOKONAISTILANNE!L10 -> 33 | G2: =KOKONAISTILANNE!N10 -> 33 | H2: =KOKONAISTILANNE!P10 -> 33 | I2: =KOKONAISTILANNE!R10 -> 0 | J2: =KOKONAISTILANNE!T10 -> 0 | K2: =KOKONAISTILANNE!V10 -> 0 | L2: =KOKONAISTILANNE!X10 -> 0 | M2: =KOKONAISTILANNE!Z10 -> 0 | N2: =KOKONAISTILANNE!AB10 -> 0 | O2: =KOKONAISTILANNE!AD10 -> 0 | P2: =KOKONAISTILANNE!AF10 -> 0 | Q2: =KOKONAISTILANNE!AH10 -> 0 | R2: =KOKONAISTILANNE!AJ10 -> 0 | S2: =KOKONAISTILANNE!AL10 -> 0 | T2: =KOKONAISTILANNE!AN10 -> 0 | U2: =KOKONAISTILANNE!AP10 -> 0 | V2: =KOKONAISTILANNE!AR10 -> 0 | W2: =KOKONAISTILANNE!AT10 -> 0 | X2: =LARGE(D2:W2,1) -> 42 | Y2: =LARGE(D2:W2,2) -> 33 | Z2: =LARGE(D2:W2,3) -> 33 | AA2: =LARGE(D2:W2,4) -> 33 | AB2: =LARGE(D2:W2,5) -> 28 | AC2: =LARGE(D2:W2,6) -> 0 | AD2: =LARGE(D2:W2,7) -> 0 | AE2: =LARGE(D2:W2,8) -> 0 | AF2: =LARGE(D2:W2,9) -> 0 | AG2: =LARGE(D2:W2,10) -> 0 | AH2: =LARGE(D2:W2,11) -> 0 | AI2: =LARGE(D2:W2,12) -> 0 | AJ2: =SUM(X2:AI2) -> 169
A3: 2 | B3: Pekka Mäntylä | C3: =KOKONAISTILANNE!C11 -> Pekka Mäntylä | D3: =KOKONAISTILANNE!H11 -> 9 | E3: =KOKONAISTILANNE!J11 -> 25 | F3: =KOKONAISTILANNE!L11 -> 30 | G3: =KOKONAISTILANNE!N11 -> 28 | H3: =KOKONAISTILANNE!P11 -> 29 | I3: =KOKONAISTILANNE!R11 -> 0 | J3: =KOKONAISTILANNE!T11 -> 0 | K3: =KOKONAISTILANNE!V11 -> 0 | L3: =KOKONAISTILANNE!X11 -> 0 | M3: =KOKONAISTILANNE!Z11 -> 0 | N3: =KOKONAISTILANNE!AB11 -> 0 | O3: =KOKONAISTILANNE!AD11 -> 0 | P3: =KOKONAISTILANNE!AF11 -> 0 | Q3: =KOKONAISTILANNE!AH11 -> 0 | R3: =KOKONAISTILANNE!AJ11 -> 0 | S3: =KOKONAISTILANNE!AL11 -> 0 | T3: =KOKONAISTILANNE!AN11 -> 0 | U3: =KOKONAISTILANNE!AP11 -> 0 | V3: =KOKONAISTILANNE!AR11 -> 0 | W3: =KOKONAISTILANNE!AT11 -> 0 | X3: 30 | Y3: 29 | Z3: 28 | AA3: 25 | AB3: 9 | AC3: 0 | AD3: 0 | AE3: 0 | AF3: 0 | AG3: 0 | AH3: 0 | AI3: 0 | AJ3: 121
A4: 3 | B4: Petri Tanninen | C4: =KOKONAISTILANNE!C12 -> Petri Tanninen | D4: =KOKONAISTILANNE!H12 -> 16 | E4: =KOKONAISTILANNE!J12 -> 29 | F4: =KOKONAISTILANNE!L12 -> 27 | G4: =KOKONAISTILANNE!N12 -> 19 | H4: =KOKONAISTILANNE!P12 -> 12 | I4: =KOKONAISTILANNE!R12 -> 0 | J4: =KOKONAISTILANNE!T12 -> 0 | K4: =KOKONAISTILANNE!V12 -> 0 | L4: =KOKONAISTILANNE!X12 -> 0 | M4: =KOKONAISTILANNE!Z12 -> 0 | N4: =KOKONAISTILANNE!AB12 -> 0 | O4: =KOKONAISTILANNE!AD12 -> 0 | P4: =KOKONAISTILANNE!AF12 -> 0 | Q4: =KOKONAISTILANNE!AH12 -> 0 | R4: =KOKONAISTILANNE!AJ12 -> 0 | S4: =KOKONAISTILANNE!AL12 -> 0 | T4: =KOKONAISTILANNE!AN12 -> 0 | U4: =KOKONAISTILANNE!AP12 -> 0 | V4: =KOKONAISTILANNE!AR12 -> 0 | W4: =KOKONAISTILANNE!AT12 -> 0 | X4: 29 | Y4: 27 | Z4: 19 | AA4: 16 | AB4: 12 | AC4: 0 | AD4: 0 | AE4: 0 | AF4: 0 | AG4: 0 | AH4: 0 | AI4: 0 | AJ4: 103
A5: 4 | B5: Petri Lönngren | C5: =KOKONAISTILANNE!C13 -> Petri Lönngren | D5: =KOKONAISTILANNE!H13 -> 0 | E5: =KOKONAISTILANNE!J13 -> 0 | F5: =KOKONAISTILANNE!L13 -> 26 | G5: =KOKONAISTILANNE!N13 -> 31 | H5: =KOKONAISTILANNE!P13 -> 37 | I5: =KOKONAISTILANNE!R13 -> 0 | J5: =KOKONAISTILANNE!T13 -> 0 | K5: =KOKONAISTILANNE!V13 -> 0 | L5: =KOKONAISTILANNE!X13 -> 0 | M5: =KOKONAISTILANNE!Q13 -> 0 | N5: =KOKONAISTILANNE!R13 -> 0 | O5: =KOKONAISTILANNE!S13 -> 0 | P5: =KOKONAISTILANNE!T13 -> 0 | Q5: =KOKONAISTILANNE!U13 -> 0 | R5: =KOKONAISTILANNE!V13 -> 0 | S5: =KOKONAISTILANNE!W13 -> 0 | T5: =KOKONAISTILANNE!X13 -> 0 | U5: =KOKONAISTILANNE!Y13 -> 0 | V5: =KOKONAISTILANNE!Z13 -> 0 | W5: =KOKONAISTILANNE!AA13 -> 0 | X5: 37 | Y5: 31 | Z5: 26 | AA5: 0 | AB5: 0 | AC5: 0 | AD5: 0 | AE5: 0 | AF5: 0 | AG5: 0 | AH5: 0 | AI5: 0 | AJ5: 94
A6: 5 | B6: Kari Linnanketo | C6: =KOKONAISTILANNE!C14 -> Kari Linnanketo | D6: =KOKONAISTILANNE!H14 -> 27 | E6: =KOKONAISTILANNE!J14 -> 0 | F6: =KOKONAISTILANNE!L14 -> 9 | G6: =KOKONAISTILANNE!N14 -> 18 | H6: =KOKONAISTILANNE!P14 -> 30 | I6: =KOKONAISTILANNE!R14 -> 0 | J6: =KOKONAISTILANNE!T14 -> 0 | K6: =KOKONAISTILANNE!V14 -> 0 | L6: =KOKONAISTILANNE!X14 -> 0 | M6: =KOKONAISTILANNE!Q14 -> 0 | N6: =KOKONAISTILANNE!R14 -> 0 | O6: =KOKONAISTILANNE!S14 -> 0 | P6: =KOKONAISTILANNE!T14 -> 0 | Q6: =KOKONAISTILANNE!U14 -> 0 | R6: =KOKONAISTILANNE!V14 -> 0 | S6: =KOKONAISTILANNE!W14 -> 0 | T6: =KOKONAISTILANNE!X14 -> 0 | U6: =KOKONAISTILANNE!Y14 -> 0 | V6: =KOKONAISTILANNE!Z14 -> 0 | W6: =KOKONAISTILANNE!AA14 -> 0 | X6: 30 | Y6: 27 | Z6: 18 | AA6: 9 | AB6: 0 | AC6: 0 | AD6: 0 | AE6: 0 | AF6: 0 | AG6: 0 | AH6: 0 | AI6: 0 | AJ6: 84
A7: 6 | B7: Juhani Samuli | C7: =KOKONAISTILANNE!C15 -> Juhani Samuli | D7: =KOKONAISTILANNE!H15 -> 0 | E7: =KOKONAISTILANNE!J15 -> 0 | F7: =KOKONAISTILANNE!L15 -> 19 | G7: =KOKONAISTILANNE!N15 -> 28 | H7: =KOKONAISTILANNE!P15 -> 23 | I7: =KOKONAISTILANNE!R15 -> 0 | J7: =KOKONAISTILANNE!T15 -> 0 | K7: =KOKONAISTILANNE!V15 -> 0 | L7: =KOKONAISTILANNE!X15 -> 0 | M7: =KOKONAISTILANNE!Q15 -> 0 | N7: =KOKONAISTILANNE!R15 -> 0 | O7: =KOKONAISTILANNE!S15 -> 0 | P7: =KOKONAISTILANNE!T15 -> 0 | Q7: =KOKONAISTILANNE!U15 -> 0 | R7: =KOKONAISTILANNE!V15 -> 0 | S7: =KOKONAISTILANNE!W15 -> 0 | T7: =KOKONAISTILANNE!X15 -> 0 | U7: =KOKONAISTILANNE!Y15 -> 0 | V7: =KOKONAISTILANNE!Z15 -> 0 | W7: =KOKONAISTILANNE!AA15 -> 0 | X7: 28 | Y7: 23 | Z7: 19 | AA7: 0 | AB7: 0 | AC7: 0 | AD7: 0 | AE7: 0 | AF7: 0 | AG7: 0 | AH7: 0 | AI7: 0 | AJ7: 70
A8: 7 | B8: Patrik Eriksson | C8: =KOKONAISTILANNE!C16 -> Juuso Tasku | D8: =KOKONAISTILANNE!H16 -> 0 | E8: =KOKONAISTILANNE!J16 -> 0 | F8: =KOKONAISTILANNE!L16 -> 0 | G8: =KOKONAISTILANNE!N16 -> 27 | H8: =KOKONAISTILANNE!P16 -> 30 | I8: =KOKONAISTILANNE!R17 -> 0 | J8: =KOKONAISTILANNE!T17 -> 0 | K8: =KOKONAISTILANNE!V16 -> 0 | L8: =KOKONAISTILANNE!X16 -> 0 | M8: =KOKONAISTILANNE!Z16 -> 0 | N8: =KOKONAISTILANNE!AB16 -> 0 | O8: =KOKONAISTILANNE!AD16 -> 0 | P8: =KOKONAISTILANNE!AF16 -> 0 | Q8: =KOKONAISTILANNE!AH16 -> 0 | R8: =KOKONAISTILANNE!AJ16 -> 0 | S8: =KOKONAISTILANNE!AL16 -> 0 | T8: =KOKONAISTILANNE!AN16 -> 0 | U8: =KOKONAISTILANNE!AP16 -> 0 | V8: =KOKONAISTILANNE!AR16 -> 0 | W8: =KOKONAISTILANNE!AT16 -> 0 | X8: 30 | Y8: 27 | Z8: 0 | AA8: 0 | AB8: 0 | AC8: 0 | AD8: 0 | AE8: 0 | AF8: 0 | AG8: 0 | AH8: 0 | AI8: 0 | AJ8: 57
A9: 8 | B9: Juuso Tasku | C9: =KOKONAISTILANNE!C17 -> Patrik Eriksson | D9: =KOKONAISTILANNE!H17 -> 0 | E9: =KOKONAISTILANNE!J17 -> 0 | F9: =KOKONAISTILANNE!L17 -> 0 | G9: =KOKONAISTILANNE!N17 -> 34 | H9: =KOKONAISTILANNE!P17 -> 22 | I9: =KOKONAISTILANNE!R16 -> 0 | J9: =KOKONAISTILANNE!T16 -> 0 | K9: =KOKONAISTILANNE!V21 -> 0 | L9: =KOKONAISTILANNE!X21 -> 0 | M9: =KOKONAISTILANNE!Z21 -> 0 | N9: =KOKONAISTILANNE!AB21 -> 0 | O9: =KOKONAISTILANNE!AD21 -> 0 | P9: =KOKONAISTILANNE!AF21 -> 0 | Q9: =KOKONAISTILANNE!AH21 -> 0 | R9: =KOKONAISTILANNE!AJ21 -> 0 | S9: =KOKONAISTILANNE!AL21 -> 0 | T9: =KOKONAISTILANNE!AN21 -> 0 | U9: =KOKONAISTILANNE!AP21 -> 0 | V9: =KOKONAISTILANNE!AR21 -> 0 | W9: =KOKONAISTILANNE!AT21 -> 0 | X9: 34 | Y9: 22 | Z9: 0 | AA9: 0 | AB9: 0 | AC9: 0 | AD9: 0 | AE9: 0 | AF9: 0 | AG9: 0 | AH9: 0 | AI9: 0 | AJ9: 56
A10: 9 | B10: Miko Tuominen | C10: =KOKONAISTILANNE!C18 -> Miko Tuominen | D10: =KOKONAISTILANNE!H18 -> 0 | E10: =KOKONAISTILANNE!J18 -> 0 | F10: =KOKONAISTILANNE!L18 -> 0 | G10: =KOKONAISTILANNE!N18 -> 22 | H10: =KOKONAISTILANNE!P18 -> 30 | I10: =KOKONAISTILANNE!R18 -> 0 | J10: =KOKONAISTILANNE!T18 -> 0 | K10: =KOKONAISTILANNE!V17 -> 0 | L10: =KOKONAISTILANNE!X17 -> 0 | M10: =KOKONAISTILANNE!Z17 -> 0 | N10: =KOKONAISTILANNE!AB17 -> 0 | O10: =KOKONAISTILANNE!AD17 -> 0 | P10: =KOKONAISTILANNE!AF17 -> 0 | Q10: =KOKONAISTILANNE!AH17 -> 0 | R10: =KOKONAISTILANNE!AJ17 -> 0 | S10: =KOKONAISTILANNE!AL17 -> 0 | T10: =KOKONAISTILANNE!AN17 -> 0 | U10: =KOKONAISTILANNE!AP17 -> 0 | V10: =KOKONAISTILANNE!AR17 -> 0 | W10: =KOKONAISTILANNE!AT17 -> 0 | X10: 30 | Y10: 22 | Z10: 0 | AA10: 0 | AB10: 0 | AC10: 0 | AD10: 0 | AE10: 0 | AF10: 0 | AG10: 0 | AH10: 0 | AI10: 0 | AJ10: 52
A11: 10 | B11: Tiina Tång | C11: =KOKONAISTILANNE!C19 -> Tiina Tång | D11: =KOKONAISTILANNE!H19 -> 14 | E11: 0 | F11: =KOKONAISTILANNE!L19 -> 0 | G11: =KOKONAISTILANNE!N19 -> 6 | H11: =KOKONAISTILANNE!P19 -> 19 | I11: =KOKONAISTILANNE!R19 -> 0 | J11: =KOKONAISTILANNE!T19 -> 0 | K11: =KOKONAISTILANNE!V19 -> 0 | L11: =KOKONAISTILANNE!X19 -> 0 | M11: =KOKONAISTILANNE!Z19 -> 0 | N11: =KOKONAISTILANNE!AB19 -> 0 | O11: =KOKONAISTILANNE!AD19 -> 0 | P11: =KOKONAISTILANNE!AF19 -> 0 | Q11: =KOKONAISTILANNE!AH19 -> 0 | R11: =KOKONAISTILANNE!AJ19 -> 0 | S11: =KOKONAISTILANNE!AL19 -> 0 | T11: =KOKONAISTILANNE!AN19 -> 0 | U11: =KOKONAISTILANNE!AP19 -> 0 | V11: =KOKONAISTILANNE!AR19 -> 0 | W11: =KOKONAISTILANNE!AT19 -> 0 | X11: 19 | Y11: 14 | Z11: 6 | AA11: 0 | AB11: 0 | AC11: 0 | AD11: 0 | AE11: 0 | AF11: 0 | AG11: 0 | AH11: 0 | AI11: 0 | AJ11: 39
A12: 11 | B12: Marjo Tiainen | C12: =KOKONAISTILANNE!C20 -> Jari Haapanen | D12: =KOKONAISTILANNE!H20 -> 0 | E12: =KOKONAISTILANNE!J20 -> 0 | F12: =KOKONAISTILANNE!L20 -> 0 | G12: =KOKONAISTILANNE!N20 -> 0 | H12: =KOKONAISTILANNE!P20 -> 28 | I12: =KOKONAISTILANNE!R22 -> 0 | J12: =KOKONAISTILANNE!T22 -> 0 | K12: =KOKONAISTILANNE!V22 -> 0 | L12: =KOKONAISTILANNE!X22 -> 0 | M12: =KOKONAISTILANNE!Z22 -> 0 | N12: =KOKONAISTILANNE!AB22 -> 0 | O12: =KOKONAISTILANNE!AD22 -> 0 | P12: =KOKONAISTILANNE!AF22 -> 0 | Q12: =KOKONAISTILANNE!AH22 -> 0 | R12: =KOKONAISTILANNE!AJ22 -> 0 | S12: =KOKONAISTILANNE!AL22 -> 0 | T12: =KOKONAISTILANNE!AN22 -> 0 | U12: =KOKONAISTILANNE!AP22 -> 0 | V12: =KOKONAISTILANNE!AR22 -> 0 | W12: =KOKONAISTILANNE!AT22 -> 0 | X12: 28 | Y12: 0 | Z12: 0 | AA12: 0 | AB12: 0 | AC12: 0 | AD12: 0 | AE12: 0 | AF12: 0 | AG12: 0 | AH12: 0 | AI12: 0 | AJ12: 28
A13: 12 | B13: Marianne Martiala | C13: =KOKONAISTILANNE!C21 -> Aleksi Tång | D13: =KOKONAISTILANNE!H21 -> 0 | E13: =KOKONAISTILANNE!J21 -> 0 | F13: =KOKONAISTILANNE!L21 -> 0 | G13: =KOKONAISTILANNE!N21 -> 0 | H13: =KOKONAISTILANNE!P21 -> 4 | I13: =KOKONAISTILANNE!R23 -> 0 | J13: =KOKONAISTILANNE!T23 -> 0 | K13: =KOKONAISTILANNE!V23 -> 0 | L13: =KOKONAISTILANNE!X23 -> 0 | M13: =KOKONAISTILANNE!Z23 -> 0 | N13: =KOKONAISTILANNE!AB23 -> 0 | O13: =KOKONAISTILANNE!AD23 -> 0 | P13: =KOKONAISTILANNE!AF23 -> 0 | Q13: =KOKONAISTILANNE!AH23 -> 0 | R13: =KOKONAISTILANNE!AJ23 -> 0 | S13: =KOKONAISTILANNE!AL23 -> 0 | T13: =KOKONAISTILANNE!AN23 -> 0 | U13: =KOKONAISTILANNE!AP23 -> 0 | V13: =KOKONAISTILANNE!AR23 -> 0 | W13: =KOKONAISTILANNE!AT23 -> 0 | X13: 4 | Y13: 0 | Z13: 0 | AA13: 0 | AB13: 0 | AC13: 0 | AD13: 0 | AE13: 0 | AF13: 0 | AG13: 0 | AH13: 0 | AI13: 0 | AJ13: 4
A14: 13 | B14: Aleksi Tång | C14: =KOKONAISTILANNE!C22 -> Marjo Tiainen | D14: =KOKONAISTILANNE!H22 -> 0 | E14: =KOKONAISTILANNE!J22 -> 0 | F14: =KOKONAISTILANNE!L22 -> 0 | G14: =KOKONAISTILANNE!N22 -> 0 | H14: =KOKONAISTILANNE!P22 -> 0 | I14: =KOKONAISTILANNE!R21 -> 0 | J14: =KOKONAISTILANNE!T21 -> 0 | K14: =KOKONAISTILANNE!V21 -> 0 | L14: =KOKONAISTILANNE!X21 -> 0 | M14: =KOKONAISTILANNE!Z21 -> 0 | N14: =KOKONAISTILANNE!AB21 -> 0 | O14: =KOKONAISTILANNE!AD21 -> 0 | P14: =KOKONAISTILANNE!AF21 -> 0 | Q14: =KOKONAISTILANNE!AH21 -> 0 | R14: =KOKONAISTILANNE!AJ21 -> 0 | S14: =KOKONAISTILANNE!AL21 -> 0 | T14: =KOKONAISTILANNE!AN21 -> 0 | U14: =KOKONAISTILANNE!AP21 -> 0 | V14: =KOKONAISTILANNE!AR21 -> 0 | W14: =KOKONAISTILANNE!AT21 -> 0 | X14: =LARGE(D14:W14,1) -> 0 | Y14: =LARGE(D14:W14,2) -> 0 | Z14: =LARGE(D14:W14,3) -> 0 | AA14: =LARGE(D14:W14,4) -> 0 | AB14: =LARGE(D14:W14,5) -> 0 | AC14: =LARGE(D14:W14,6) -> 0 | AD14: =LARGE(D14:W14,7) -> 0 | AE14: =LARGE(D14:W14,8) -> 0 | AF14: =LARGE(D14:W14,9) -> 0 | AG14: =LARGE(D14:W14,10) -> 0 | AH14: =LARGE(D14:W14,11) -> 0 | AI14: =LARGE(D14:W14,12) -> 0 | AJ14: =SUM(X14:AI14) -> 0
C15: =KOKONAISTILANNE!C23 -> Marianne Martiala | D15: 0 | E15: =KOKONAISTILANNE!J23 -> 0 | F15: =KOKONAISTILANNE!L23 -> 0 | G15: =KOKONAISTILANNE!N23 -> 0 | H15: =KOKONAISTILANNE!P23 -> 0 | I15: =KOKONAISTILANNE!R24 -> 0 | J15: =KOKONAISTILANNE!T24 -> 0 | K15: =KOKONAISTILANNE!V24 -> 0 | L15: =KOKONAISTILANNE!X24 -> 0 | M15: =KOKONAISTILANNE!Z24 -> 0 | N15: =KOKONAISTILANNE!AB24 -> 0 | O15: =KOKONAISTILANNE!AD24 -> 0 | P15: =KOKONAISTILANNE!AF24 -> 0 | Q15: =KOKONAISTILANNE!AH24 -> 0 | R15: =KOKONAISTILANNE!AJ24 -> 0 | S15: =KOKONAISTILANNE!AL24 -> 0 | T15: =KOKONAISTILANNE!AN24 -> 0 | U15: =KOKONAISTILANNE!AP24 -> 0 | V15: =KOKONAISTILANNE!AR24 -> 0 | W15: =KOKONAISTILANNE!AT24 -> 0 | X15: =LARGE(D15:W15,1) -> 0 | Y15: =LARGE(D15:W15,2) -> 0 | Z15: =LARGE(D15:W15,3) -> 0 | AA15: =LARGE(D15:W15,4) -> 0 | AB15: =LARGE(D15:W15,5) -> 0 | AC15: =LARGE(D15:W15,6) -> 0 | AD15: =LARGE(D15:W15,7) -> 0 | AE15: =LARGE(D15:W15,8) -> 0 | AF15: =LARGE(D15:W15,9) -> 0 | AG15: =LARGE(D15:W15,10) -> 0 | AH15: =LARGE(D15:W15,11) -> 0 | AI15: =LARGE(D15:W15,12) -> 0 | AJ15: =SUM(X15:AI15) -> 0

Sheet Tilastot 2020-25
A1: Average
A2: Nimi | B2: 2020 | C2: 2021 | D2: 2022 | E2: 2023 | F2: 2024 | G2: 2025 | H2: Average | I2: Min | J2: Max
A3: Pete | B3: 34.68 | C3: 36.36111111 | D3: 35.34 | E3: 35.44 | F3: 36.29 | G3: 36.08 | H3: =AVERAGE(B3:G3) -> 35.69851852 | I3: =MIN(B3:G3) -> 34.68 | J3: =MAX(B3:G3) -> 36.36111111
A4: Oliver | B4: 42 | C4: 40.34210526 | D4: 39.31 | E4: 37.39 | F4: 35.22 | G4: 34.5 | H4: 38.12701754 | I4: 34.5 | J4: 42
A5: Miko | F5: 39.44 | G5: 37.63 | H5: 38.535 | I5: 37.63 | J5: 39.44
A6: Juuso | F6: 40.94 | G6: 37 | H6: 38.97 | I6: 37 | J6: 40.94
A7: Pekka | B7: 45.65 | C7: 41 | D7: 43.56 | E7: 38.53 | F7: 36.72 | G7: 39.13 | H7: 40.765 | I7: 36.72 | J7: 45.65
A8: Patrik | B8: 42.17 | C8: 45.2 | D8: 43.54 | E8: 42.42 | F8: 41.55 | G8: 39.92 | H8: 42.46666667 | I8: 39.92 | J8: 45.2
A9: Jusa | B9: 42.36 | C9: 39.75 | D9: 43.79 | E9: 43.63 | F9: 44.08 | G9: 43.82 | H9: 42.905 | I9: 39.75 | J9: 44.08
A10: Jari | B10: 42.45 | C10: 41.36842105 | D10: 42.56 | E10: 45.11 | F10: 48.27 | G10: 45.06 | H10: 44.13640351 | I10: 41.36842105 | J10: 48.27
A11: Eetu | B11: 45.48 | C11: 43.52777778 | D11: 44.88 | E11: 44.31 | F11: 46 | H11: 44.83955556 | I11: 43.52777778 | J11: 46
A12: Kätsä | B12: 45.5 | C12: 45.95833333 | D12: 45.38 | E12: 45.11 | F12: 44.44 | G12: 44.2 | H12: 45.09805556 | I12: 44.2 | J12: 45.95833333
A13: Aleksi | B13: 46.7 | C13: 48.22727273 | D13: 48.07 | E13: 48.05 | F13: 47.96 | G13: 48.45 | H13: 47.90954545 | I13: 46.7 | J13: 48.45
A14: Tiina | B14: 48.32 | C14: 48.5 | D14: 47.66 | E14: 48.98 | F14: 49.5 | G14: 49.14 | H14: 48.68333333 | I14: 47.66 | J14: 49.5
A15: Kude | B15: 49.97 | C15: 46.76470588 | D15: 50.24 | E15: 46.06 | F15: 50.68 | H15: 48.74294118 | I15: 46.06 | J15: 50.68
A16: Petri T | C16: 53.81818182 | D16: 52.31 | E16: 51.47 | F16: 45.35 | G16: 43.28 | H16: 49.24563636 | I16: 43.28 | J16: 53.81818182
A17: Tomi | B17: 46.18 | C17: 41.28571429 | D17: 51.25 | E17: 51.75 | G17: 61 | H17: 50.29314286 | I17: 41.28571429 | J17: 61
A18: Marjo | C18: 58.04545455 | D18: 53.89 | E18: 55.14 | F18: 56.11 | G18: 57.75 | H18: 56.18709091 | I18: 53.89 | J18: 58.04545455
A19: Marianne | C19: 56.5 | D19: 57.77 | E19: 58.53 | F19: 56.79 | G19: 58.38 | H19: 57.594 | I19: 56.5 | J19: 58.53
A21: Nimi | B21: 2020 | C21: 2021 | D21: 2022 | E21: 2023 | F21: 2024 | G21: 2025 | H21: Average | I21: Min | J21: Max
A22: Pete | B22: 350 | C22: 356 | D22: 358 | E22: 372 | F22: 369 | G22: 385 | H22: =AVERAGE(B22:G22) -> 365 | I22: =MIN(B22:G22) -> 350 | J22: =MAX(B22:G22) -> 385
A23: Oliver | B23: 328 | C23: 353 | D23: 304 | E23: 348 | F23: 381 | G23: 374 | H23: 348 | I23: 304 | J23: 381
A24: Pekka | B24: 270 | C24: 356 | D24: 291 | E24: 348 | F24: 351 | G24: 330 | H24: 324.3333333 | I24: 270 | J24: 356
A25: Jusa | B25: 330 | C25: 340 | D25: 264 | E25: 259 | F25: 297 | G25: 329 | H25: 303.1666667 | I25: 259 | J25: 340
A26: Eetu | B26: 299 | C26: 352 | D26: 271 | E26: 272 | F26: 253 | H26: 289.4 | I26: 253 | J26: 352
A27: Jari | B27: 292 | C27: 339 | D27: 290 | E27: 223 | F27: 171 | G27: 305 | H27: 270 | I27: 171 | J27: 339
A28: Kätsä | B28: 270 | C28: 192 | D28: 219 | E28: 245 | F28: 259 | G28: 271 | H28: 242.6666667 | I28: 192 | J28: 271
A29: Tiina | B29: 223 | C29: 251 | D29: 245 | E29: 225 | F29: 228 | G29: 241 | H29: 235.5 | I29: 223 | J29: 251
A30: Patrik | B30: 152 | C30: 88 | D30: 219 | E30: 310 | F30: 333 | G30: 327 | H30: 238.1666667 | I30: 88 | J30: 333
A31: Kude | B31: 209 | C31: 284 | D31: 175 | E31: 282 | F31: 152 | H31: 220.4 | I31: 152 | J31: 284
A32: Aleksi | B32: 260 | C32: 171 | D32: 175 | E32: 159 | F32: 209 | G32: 151 | H32: 187.5 | I32: 151 | J32: 260
A33: Petri T | B33: 2 | C33: 67 | D33: 171 | E33: 224 | F33: 313 | G33: 356 | H33: 188.8333333 | I33: 2 | J33: 356
A35: Nimi | B35: 2020 | C35: 2021 | D35: 2022 | E35: 2023 | F35: 2024 | G35: 2025 | H35: Average | I35: Min | J35: Max
A36: Pete | B36: 350 | C36: 356 | D36: 358 | E36: 372 | F36: 369 | G36: 385 | H36: =AVERAGE(B36:G36) -> 365 | I36: =MIN(B36:G36) -> 350 | J36: =MAX(B36:G36) -> 385
A37: Oliver | B37: 328 | C37: 353 | D37: 304 | E37: 348 | F37: 381 | G37: 374 | H37: =AVERAGE(B37:G37) -> 348 | I37: =MIN(B37:G37) -> 304 | J37: =MAX(B37:G37) -> 381
A38: Pekka | B38: 270 | C38: 356 | D38: 291 | E38: 348 | F38: 351 | G38: 330 | H38: =AVERAGE(B38:G38) -> 324.3333333 | I38: =MIN(B38:G38) -> 270 | J38: =MAX(B38:G38) -> 356
A39: Petri T | B39: 2 | C39: 67 | D39: 171 | E39: 224 | F39: 313 | G39: 356 | H39: =AVERAGE(B39:G39) -> 188.8333333 | I39: =MIN(B39:G39) -> 2 | J39: =MAX(B39:G39) -> 356
A40: Eetu | B40: 299 | C40: 352 | D40: 271 | E40: 272 | F40: 253 | H40: =AVERAGE(B40:F40) -> 289.4 | I40: =MIN(B40:F40) -> 253 | J40: =MAX(B40:F40) -> 352
A41: Jusa | B41: 330 | C41: 340 | D41: 264 | E41: 259 | F41: 297 | G41: 329 | H41: =AVERAGE(B41:G41) -> 303.1666667 | I41: =MIN(B41:G41) -> 259 | J41: =MAX(B41:G41) -> 340
A42: Jari | B42: 292 | C42: 339 | D42: 290 | E42: 223 | F42: 171 | G42: 305 | H42: =AVERAGE(B42:G42) -> 270 | I42: =MIN(B42:G42) -> 171 | J42: =MAX(B42:G42) -> 339
A43: Patrik | B43: 152 | C43: 88 | D43: 219 | E43: 310 | F43: 333 | G43: 327 | H43: =AVERAGE(B43:G43) -> 238.1666667 | I43: =MIN(B43:G43) -> 88 | J43: =MAX(B43:G43) -> 333
A44: Kude | B44: 209 | C44: 284 | D44: 175 | E44: 282 | F44: 152 | H44: =AVERAGE(B44:F44) -> 220.4 | I44: =MIN(B44:F44) -> 152 | J44: =MAX(B44:F44) -> 284
A45: Kätsä | B45: 270 | C45: 192 | D45: 219 | E45: 245 | F45: 259 | G45: 271 | H45: =AVERAGE(B45:G45) -> 242.6666667 | I45: =MIN(B45:G45) -> 192 | J45: =MAX(B45:G45) -> 271
A46: Aleksi | B46: 260 | C46: 171 | D46: 175 | E46: 159 | F46: 209 | G46: 151 | H46: =AVERAGE(B46:G46) -> 187.5 | I46: =MIN(B46:G46) -> 151 | J46: =MAX(B46:G46) -> 260
A47: Tiina | B47: 223 | C47: 251 | D47: 245 | E47: 225 | F47: 228 | G47: 241 | H47: =AVERAGE(B47:G47) -> 235.5 | I47: =MIN(B47:G47) -> 223 | J47: =MAX(B47:G47) -> 251
A49: Nimi | B49: 2020 | C49: 2021 | D49: 2022 | E49: 2023 | F49: 2024 | G49: 2025 | H49: Average | I49: Min | J49: Max
A50: Pete | B50: 350 | C50: 356 | D50: 358 | E50: 372 | F50: 369 | G50: 385 | H50: =AVERAGE(B50:G50) -> 365 | I50: =MIN(B50:G50) -> 350 | J50: =MAX(B50:G50) -> 385
A51: Oliver | B51: 328 | C51: 353 | D51: 304 | E51: 348 | F51: 381 | G51: 374 | H51: =AVERAGE(B51:G51) -> 348 | I51: =MIN(B51:G51) -> 304 | J51: =MAX(B51:G51) -> 381
A52: Pekka | B52: 270 | C52: 356 | D52: 291 | E52: 348 | F52: 351 | G52: 330 | H52: =AVERAGE(B52:G52) -> 324.3333333 | I52: =MIN(B52:G52) -> 270 | J52: =MAX(B52:G52) -> 356
A53: Jusa | B53: 330 | C53: 340 | D53: 264 | E53: 259 | F53: 297 | G53: 329 | H53: =AVERAGE(B53:G53) -> 303.1666667 | I53: =MIN(B53:G53) -> 259 | J53: =MAX(B53:G53) -> 340
A54: Eetu | B54: 299 | C54: 352 | D54: 271 | E54: 272 | F54: 253 | H54: =AVERAGE(B54:F54) -> 289.4 | I54: =MIN(B54:F54) -> 253 | J54: =MAX(B54:F54) -> 352
A55: Jari | B55: 292 | C55: 339 | D55: 290 | E55: 223 | F55: 171 | G55: 305 | H55: =AVERAGE(B55:G55) -> 270 | I55: =MIN(B55:G55) -> 171 | J55: =MAX(B55:G55) -> 339
A56: Kätsä | B56: 270 | C56: 192 | D56: 219 | E56: 245 | F56: 259 | G56: 271 | H56: =AVERAGE(B56:G56) -> 242.6666667 | I56: =MIN(B56:G56) -> 192 | J56: =MAX(B56:G56) -> 271
A57: Tiina | B57: 223 | C57: 251 | D57: 245 | E57: 225 | F57: 228 | G57: 241 | H57: =AVERAGE(B57:G57) -> 235.5 | I57: =MIN(B57:G57) -> 223 | J57: =MAX(B57:G57) -> 251
A58: Patrik | B58: 152 | C58: 88 | D58: 219 | E58: 310 | F58: 333 | G58: 327 | H58: =AVERAGE(B58:G58) -> 238.1666667 | I58: =MIN(B58:G58) -> 88 | J58: =MAX(B58:G58) -> 333
A59: Kude | B59: 209 | C59: 284 | D59: 175 | E59: 282 | F59: 152 | H59: 220.4 | I59: 152 | J59: 284
A60: Aleksi | B60: 260 | C60: 171 | D60: 175 | E60: 159 | F60: 209 | G60: 151 | H60: =AVERAGE(B60:G60) -> 187.5 | I60: =MIN(B60:G60) -> 151 | J60: =MAX(B60:G60) -> 260
A61: Petri T | B61: 2 | C61: 67 | D61: 171 | E61: 224 | F61: 313 | G61: 356 | H61: =AVERAGE(B61:G61) -> 188.8333333 | I61: =MIN(B61:G61) -> 2 | J61: =MAX(B61:G61) -> 356

Sheet Pelilappu
A1: VIIKKOKISA 2.6.2026
A3: Nimi | B3: Seura | C3: Tasoitus | D3: Pisteitä | E3: 12.paras kisa | F3: 1.kierros | G3: 2.kierros | H3: Yhteensä | I3: Pisteet | J3: Sijoitus
A4: =KOKONAISTILANNE!C10 -> Oliver Mäntylä | B4: =KOKONAISTILANNE!D10 -> TuRGS | C4: =KOKONAISTILANNE!F10 -> 0 | D4: =KOKONAISTILANNE!AV10 -> 169 | E4: =Aputaulukko!AI2 -> 0
A5: =KOKONAISTILANNE!C11 -> Pekka Mäntylä | B5: =KOKONAISTILANNE!D11 -> TuRGS | C5: =KOKONAISTILANNE!F11 -> 3 | D5: =KOKONAISTILANNE!AV11 -> 121 | E5: =Aputaulukko!AI3 -> 0
A6: =KOKONAISTILANNE!C12 -> Petri Tanninen | B6: =KOKONAISTILANNE!D12 -> TuRGS | C6: =KOKONAISTILANNE!F12 -> 11 | D6: =KOKONAISTILANNE!AV12 -> 103 | E6: =Aputaulukko!AI4 -> 0
A7: =KOKONAISTILANNE!C13 -> Petri Lönngren | B7: =KOKONAISTILANNE!D13 -> TuRGS | C7: =KOKONAISTILANNE!F13 -> 2 | D7: =KOKONAISTILANNE!AV13 -> 94 | E7: =Aputaulukko!AI5 -> 0
A8: =KOKONAISTILANNE!C14 -> Kari Linnanketo | B8: =KOKONAISTILANNE!D14 -> TuRGS | C8: =KOKONAISTILANNE!F14 -> 7 | D8: =KOKONAISTILANNE!AV14 -> 84 | E8: =Aputaulukko!AI6 -> 0
A9: =KOKONAISTILANNE!C15 -> Juhani Samuli | B9: =KOKONAISTILANNE!D15 -> TuRGS | C9: =KOKONAISTILANNE!F15 -> 12 | D9: =KOKONAISTILANNE!AV15 -> 70 | E9: =Aputaulukko!AI7 -> 0
A10: =KOKONAISTILANNE!C17 -> Patrik Eriksson | B10: =KOKONAISTILANNE!D17 -> TuRGS | C10: =KOKONAISTILANNE!F17 -> 6 | D10: =KOKONAISTILANNE!AV17 -> 56 | E10: =Aputaulukko!AI8 -> 0
A11: =KOKONAISTILANNE!C16 -> Juuso Tasku | B11: =KOKONAISTILANNE!D16 -> Manse | C11: =KOKONAISTILANNE!F16 -> 4 | D11: =KOKONAISTILANNE!AV16 -> 57 | E11: =Aputaulukko!AI9 -> 0
A12: =KOKONAISTILANNE!C18 -> Miko Tuominen | B12: =KOKONAISTILANNE!D18 -> Manse | C12: =KOKONAISTILANNE!F18 -> 4 | D12: =KOKONAISTILANNE!AV18 -> 52 | E12: =Aputaulukko!AI10 -> 0
A13: =KOKONAISTILANNE!C19 -> Tiina Tång | B13: =KOKONAISTILANNE!D19 -> TuRGS | C13: =KOKONAISTILANNE!F19 -> 12 | D13: =KOKONAISTILANNE!AV19 -> 39 | E13: =Aputaulukko!AI11 -> 0
A14: =KOKONAISTILANNE!C22 -> Marjo Tiainen | B14: =KOKONAISTILANNE!D22 -> TuRGS | C14: =KOKONAISTILANNE!F22 -> 17 | D14: =KOKONAISTILANNE!AV22 -> 0 | E14: =Aputaulukko!AI12 -> 0
A15: =KOKONAISTILANNE!C23 -> Marianne Martiala | B15: =KOKONAISTILANNE!D23 -> TuRGS | C15: =KOKONAISTILANNE!F23 -> 12 | D15: =KOKONAISTILANNE!AV23 -> 0 | E15: =Aputaulukko!AI13 -> 0
A16: =KOKONAISTILANNE!C21 -> Aleksi Tång | B16: =KOKONAISTILANNE!D21 -> TuRGS | C16: =KOKONAISTILANNE!F21 -> 12 | D16: =KOKONAISTILANNE!AV21 -> 4 | E16: =Aputaulukko!AI14 -> 0
A29: PIIKKIKISA
A30: Nimi | C30: Rata | F30: Tulos
